fUSD/lending_fUSD_20260115
["ID","MTS","AMOUNT","RATE_DAILY","PERIOD"]
[402043378,1768492254972,-500.0,0.00038356,30]
[402043379,1768492254982,-500.0,0.00038356,30]
[402043380,1768492254994,-300.0,0.00038356,2]
[402043381,1768492255004,-2324.51,0.00038356,30]
[402043382,1768492255014,-722.15,0.00038356,30]
[402043383,1768492255024,-500.0,0.00038356,30]
[402043384,1768492255034,-638.38,0.00038356,30]
[402043385,1768492255044,-500.0,0.00038356,30]
[402043386,1768492255054,-500.0,0.00038356,30]
[402043387,1768492255063,-500.0,0.00038356,30]
[402043388,1768492255073,-1007.37,0.00038356,30]
[402043389,1768492255083,-1451.16,0.00038356,30]
[402043390,1768492255093,-581.98,0.00038356,30]
[402043391,1768492255103,-500.0,0.00038356,30]
[402043392,1768492255113,-500.0,0.00038356,30]
[402043393,1768492255123,-500.0,0.00038356,14]
[402043394,1768492255132,-500.0,0.00038356,30]
[402043395,1768492255142,-673.56,0.00038356,30]
[402043396,1768492255151,-947.62,0.00038356,30]
[402043397,1768492255161,-500.0,0.00038356,30]
[402043398,1768492255171,-500.0,0.00038356,30]
[402043399,1768492255180,-2161.46,0.00038356,30]
[402043400,1768492255190,-500.0,0.00038356,16]
[402043401,1768492255199,-500.0,0.00038356,30]
[402043402,1768492255210,-500.0,0.00038356,30]
[402043403,1768492255219,-1065.4,0.00038356,30]
[402043404,1768492255229,-500.0,0.00038356,30]
[402043405,1768492255239,-1386.07,0.00038356,30]
[402043406,1768492255249,-500.0,0.00038356,30]
[402043407,1768492255259,-853.42,0.00038356,30]
[402043408,1768492255269,-1640.08,0.00038356,30]
[402043409,1768492255279,-958.04,0.00038356,30]
[402043410,1768492255289,-500.0,0.00038356,30]
[402043411,1768492255299,-500.0,0.00038356,120]
[402043412,1768492255309,-500.0,0.00038356,30]
[402043413,1768492255319,-722.06,0.00038356,30]
[402043414,1768492255328,-500.0,0.00038356,30]
[402043415,1768492255338,-823.28,0.00038356,30]
[402043416,1768492255349,-500.0,0.00038356,30]
[402043417,1768492255358,-676.11,0.00038356,30]
[402043418,1768492255367,-500.0,0.00038356,30]
[402043419,1768492255377,-500.0,0.00038356,30]
[402043420,1768492255472,-500.0,0.00038356,30]
[402043421,1768492255482,-500.0,0.00038356,30]
[402043422,1768492255491,-3543.94,0.00038356,30]
[402043423,1768492255501,-500.0,0.00038356,30]
[402043424,1768492255512,-500.0,0.00038356,30]
[402043425,1768492255521,-1635.08,0.00038356,30]
[402043426,1768492255532,-656.88,0.00038356,30]
[402043427,1768492255541,-500.0,0.00038356,30]
[402043428,1768492255551,-500.0,0.00038356,30]
[402043429,1768492255561,-602.8,0.00038356,30]
[402043430,1768492255573,-1120.05,0.00038356,30]
[402043431,1768492255583,-500.0,0.00038356,30]
[402043432,1768492255592,-500.0,0.00038356,30]
[402043433,1768492255601,-500.0,0.00038356,30]
[402043434,1768492255611,-1364.67,0.00038356,30]
[402043435,1768492255620,-1075.42,0.00038356,30]
[402043436,1768492255631,-440.61006257,0.00038356,30]
[402043437,1768492255640,-696.15,0.00038356,30]
[402043438,1768492255650,-666.24,0.00038356,30]
[402043439,1768492255659,-500.0,0.00038356,30]
[402043440,1768492255670,-500.0,0.00038356,30]
[402043441,1768492255680,-1680.64,0.00038356,30]
[402043442,1768492255690,-500.0,0.00038356,30]
[402043443,1768492255699,-1123.53,0.00038356,30]
[402043444,1768492255709,-500.0,0.00038356,30]
[402043445,1768492255720,-813.01,0.00038356,30]
[402043446,1768492255730,-500.0,0.00038356,30]
[402043447,1768492255739,-594.36,0.00038356,30]
[402043448,1768492255748,-763.77,0.00038356,30]
[402043449,1768492255759,-668.3,0.00038356,30]
[402043450,1768492255768,-679.85,0.00038356,30]
[402043451,1768492255777,-955.72,0.00038356,30]
[402043452,1768492255787,-500.0,0.00038356,30]
[402043453,1768492255796,-500.0,0.00038356,5]
[402043454,1768492255805,-864.45,0.00038356,30]
[402043455,1768492255814,-263.39330623,0.00038356,30]
[402043456,1768492255823,-1639.5,0.00038356,30]
[402043457,1768492255832,-4686.6,0.00038356,30]
[402043458,1768492255842,-945.47,0.00038356,30]
[402043459,1768492255851,-7.54448405,0.00038356,30]
[402043460,1768492256374,-492.45551595,0.00038356,30]
[402043461,1768492256384,-500.0,0.00038356,30]
[402043462,1768492256395,-1120.42,0.00038356,30]
[402043463,1768492256406,-500.0,0.00038356,30]
[402043464,1768492256417,-833.97,0.00038356,30]
[402043465,1768492256428,-500.0,0.00038356,30]
[402043466,1768492256438,-629.07,0.00038356,30]
[402043467,1768492256449,-500.0,0.00038356,30]
[402043468,1768492256459,-707.63,0.00038356,30]
[402043469,1768492256470,-542.95,0.00038356,30]
[402043470,1768492256482,-500.0,0.00038356,30]
[402043471,1768492256492,-500.0,0.00038356,30]
[402043472,1768492256503,-500.0,0.00038356,30]
[402043473,1768492256513,-500.0,0.00038356,30]
[402043474,1768492256524,-500.0,0.00038356,30]
[402043475,1768492256534,-500.0,0.00038356,30]
[402043476,1768492256544,-500.0,0.00038356,30]
[402043477,1768492256554,-500.0,0.00038356,30]
[402043478,1768492256566,-500.0,0.00038356,14]
[402043479,1768492256576,-500.0,0.00038356,30]
[402043480,1768492256587,-500.0,0.00038356,30]
[402043481,1768492256596,-510.69,0.00038356,30]
[402043482,1768492256607,-500.0,0.00038356,30]
[402043483,1768492256617,-500.0,0.00038356,30]
[402043484,1768492256627,-555.82,0.00038356,30]
[402043485,1768492256637,-1052.53,0.00038356,30]
[402043486,1768492256647,-929.57,0.00038356,30]
[402043487,1768492256657,-500.0,0.00038356,30]
[402043488,1768492256667,-858.9,0.00038356,30]
[402043489,1768492256677,-1248.15,0.00038356,30]
[402043490,1768492256687,-500.0,0.00038356,30]
[402043491,1768492256698,-500.0,0.00038356,30]
[402043492,1768492256710,-1096.28,0.00038356,30]
[402043493,1768492256723,-500.0,0.00038356,30]
[402043494,1768492256733,-500.0,0.00038356,30]
[402043495,1768492256743,-500.0,0.00038356,30]
[402043496,1768492256754,-300.0,0.00038356,30]
[402043497,1768492256765,-1259.83,0.00038356,30]
[402043498,1768492256775,-500.0,0.00038356,30]
[402043499,1768492256787,-1557.76,0.00038356,14]
[402043500,1768492256799,-500.0,0.00038356,30]
[402043501,1768492256809,-500.0,0.00038356,30]
[402043502,1768492256820,-1003.86,0.00038356,30]
[402043503,1768492256831,-604.67,0.00038356,30]
[402043504,1768492256841,-500.0,0.00038356,30]
[402043505,1768492256852,-564.46,0.00038356,30]
[402043506,1768492256862,-731.64,0.00038356,30]
[402043507,1768492256873,-500.0,0.00038356,30]
[402043508,1768492256883,-1273.57,0.00038356,30]
[402043509,1768492256894,-712.06,0.00038356,30]
[402043510,1768492256905,-554.92,0.00038356,30]
[402043511,1768492256915,-424.7911493,0.00038356,30]
[402043512,1768492256926,-500.0,0.00038356,30]
[402043513,1768492256937,-500.0,0.00038356,30]
[402043514,1768492256948,-1098.92,0.00038356,30]
[402043515,1768492256958,-500.0,0.00038356,30]
[402043516,1768492256971,-744.82,0.00038356,30]
[402043517,1768492256982,-2832.98,0.00038356,30]
[402043518,1768492256993,-1301.53,0.00038356,30]
[402043519,1768492257004,-500.0,0.00038356,30]
[402043520,1768492257015,-500.0,0.00038356,30]
[402043521,1768492257027,-1286.44,0.00038356,30]
[402043522,1768492257039,-500.0,0.00038356,30]
[402043523,1768492257049,-500.0,0.00038356,30]
[402043524,1768492257061,-500.0,0.00038356,30]
[402043525,1768492257072,-561.98344106,0.00038356,30]
[402043526,1768492257083,-500.0,0.00038356,30]
[402043527,1768492257093,-2228.6,0.00038356,30]
[402043528,1768492257104,-500.0,0.00038356,30]
[402043529,1768492257116,-998.75,0.00038356,30]
[402043530,1768492257128,-433.39033275,0.00038356,30]
[402043531,1768492257139,-500.0,0.00038356,30]
[402043532,1768492257151,-890.68,0.00038356,30]
[402043533,1768492257162,-540.87,0.00038356,30]
[402043534,1768492257173,-1535.45,0.00038356,30]
[402043535,1768492257184,-1697.0,0.00038356,30]
[402043536,1768492257195,-500.0,0.00038356,30]
[402043537,1768492257205,-598.27,0.00038356,30]
[402043538,1768492257220,-500.0,0.00038356,30]
[402043539,1768492257231,-500.0,0.00038356,30]
[402043540,1768492257243,-500.0,0.00038356,30]
[402043541,1768492257254,-522.37,0.00038356,30]
[402043542,1768492257266,-850.12,0.00038356,30]
[402043543,1768492257277,-556.33,0.00038356,30]
[402043544,1768492257288,-1467.22,0.00038356,30]
[402043545,1768492257299,-500.0,0.00038356,30]
[402043546,1768492257314,-671.31,0.00038356,30]
[402043547,1768492257328,-504.76,0.00038356,30]
[402043548,1768492257343,-500.0,0.00038356,30]
[402043549,1768492257358,-500.0,0.00038356,30]
[402043550,1768492257370,-500.0,0.00038356,30]
[402043551,1768492257385,-866.59,0.00038356,30]
[402043552,1768492257398,-1390.23,0.00038356,30]
[402043553,1768492257412,-500.0,0.00038356,30]
[402043554,1768492257426,-937.51,0.00038356,30]
[402043555,1768492257440,-500.0,0.00038356,30]
[402043556,1768492257452,-922.67,0.00038356,30]
[402043557,1768492257468,-1030.01,0.00038356,30]
[402043558,1768492257482,-889.55,0.00038356,30]
[402043559,1768492257496,-500.0,0.00038356,30]
[402043560,1768492257510,-500.0,0.00038356,30]
[402043561,1768492257525,-567.17,0.00038356,30]
[402043562,1768492257539,-767.98,0.00038356,30]
[402043563,1768492257553,-889.87,0.00038356,30]
[402043564,1768492257568,-500.0,0.00038356,30]
[402043565,1768492257582,-500.0,0.00038356,30]
[402043566,1768492257596,-500.0,0.00038356,30]
[402043567,1768492257609,-509.54,0.00038356,30]
[402043568,1768492257622,-649.98,0.00038356,30]
[402043569,1768492257635,-1453.66,0.00038356,30]
[402043570,1768492257649,-1355.31,0.00038356,30]
[402043571,1768492257664,-1114.78,0.00038356,30]
[402043572,1768492257676,-500.0,0.00038356,30]
[402043573,1768492257688,-500.0,0.00038356,30]
[402043574,1768492257700,-973.5,0.00038356,30]
[402043575,1768492257714,-500.0,0.00038356,30]
[402043576,1768492257730,-500.0,0.00038356,30]
[402043577,1768492257744,-605.96,0.00038356,30]
[402043578,1768492257759,-612.8426851,0.00038356,30]
[402043579,1768492257769,-607.8,0.00038356,30]
[402043580,1768492257780,-500.0,0.00038356,30]
[402043581,1768492257793,-500.0,0.00038356,30]
[402043582,1768492257808,-500.0,0.00038356,30]
[402043583,1768492257820,-557.07,0.00038356,30]
[402043584,1768492257832,-3858.64,0.00038356,30]
[402043585,1768492257843,-500.0,0.00038356,30]
[402043586,1768492257855,-500.0,0.00038356,30]
[402043587,1768492257867,-1123.54,0.00038356,30]
[402043588,1768492257879,-709.11,0.00038356,30]
[402043589,1768492257897,-500.0,0.00038356,30]
[402043590,1768492257910,-918.39,0.00038356,30]
[402043591,1768492257922,-500.0,0.00038356,30]
[402043592,1768492257935,-1732.03,0.00038356,30]
[402043593,1768492257947,-1122.57,0.00038356,30]
[402043594,1768492257961,-1012.06,0.00038356,30]
[402043595,1768492257974,-500.0,0.00038356,30]
[402043596,1768492257987,-500.0,0.00038356,30]
[402043597,1768492257999,-500.0,0.00038356,30]
[402043598,1768492258014,-500.0,0.00038356,30]
[402043599,1768492258027,-500.0,0.00038356,30]
[402043600,1768492258040,-823.88,0.00038356,30]
[402043601,1768492258053,-500.0,0.00038356,30]
[402043602,1768492258065,-695.8,0.00038356,30]
[402043603,1768492258078,-1263.87,0.00038356,30]
[402043604,1768492258090,-1144.04,0.00038356,30]
[402043605,1768492258102,-500.0,0.00038356,30]
[402043606,1768492258114,-500.0,0.00038356,30]
[402043607,1768492258126,-1334.8,0.00038356,30]
[402043608,1768492258137,-500.0,0.00038356,30]
[402043609,1768492258149,-500.0,0.00038356,30]
[402043610,1768492258161,-525.11,0.00038356,30]
[402043611,1768492258173,-500.0,0.00038356,30]
[402043612,1768492258185,-1197.21,0.00038356,30]
[402043613,1768492258198,-598.57044012,0.00038356,30]
[402043614,1768492258214,-636.3,0.00038356,30]
[402043615,1768492258227,-500.0,0.00038356,30]
[402043616,1768492258239,-781.16,0.00038356,30]
[402043617,1768492258252,-500.0,0.00038356,30]
[402043618,1768492258265,-500.0,0.00038356,30]
[402043619,1768492258277,-500.0,0.00038356,30]
[402043620,1768492258289,-1151.93,0.00038356,30]
[402043621,1768492258302,-500.0,0.00038356,30]
[402043622,1768492258314,-500.0,0.00038356,30]
[402043623,1768492258327,-522.43,0.00038356,30]
[402043624,1768492258341,-3448.35,0.00038356,30]
[402043625,1768492258354,-500.0,0.00038356,30]
[402043626,1768492258366,-500.0,0.00038356,30]
[402043627,1768492258379,-1234.27,0.00038356,30]
[402043628,1768492258391,-500.0,0.00038356,30]
[402043629,1768492258403,-500.0,0.00038356,30]
[402043630,1768492258416,-500.0,0.00038356,30]
[402043631,1768492258429,-452.28,0.00038356,14]
[402043632,1768492258441,-714.44,0.00038356,30]
[402043633,1768492258454,-500.0,0.00038356,30]
[402043634,1768492258466,-500.0,0.00038356,30]
[402043635,1768492258479,-500.0,0.00038356,30]
[402043636,1768492258491,-518.32289614,0.00038356,30]
[402043637,1768492258503,-667.11,0.00038356,30]
[402043638,1768492258516,-985.99,0.00038356,30]
[402043639,1768492258528,-500.0,0.00038356,30]
[402043640,1768492258541,-500.0,0.00038356,30]
[402043641,1768492258554,-1097.01,0.00038356,30]
[402043642,1768492258566,-749.02,0.00038356,30]
[402043643,1768492258590,-500.0,0.00038356,30]
[402043644,1768492258605,-500.0,0.00038356,30]
[402043645,1768492258619,-500.0,0.00038356,30]
[402043646,1768492258635,-500.0,0.00038356,30]
[402043647,1768492258649,-838.14,0.00038356,30]
[402043648,1768492258662,-681.47,0.00038356,30]
[402043649,1768492258676,-500.0,0.00038356,30]
[402043650,1768492258691,-676.16,0.00038356,30]
[402043651,1768492258704,-500.0,0.00038356,30]
[402043652,1768492258722,-500.0,0.00038356,30]
[402043653,1768492258736,-500.0,0.00038356,30]
[402043654,1768492258750,-1230.17,0.00038356,30]
[402043655,1768492258763,-500.0,0.00038356,30]
[402043656,1768492258775,-698.49,0.00038356,30]
[402043657,1768492258789,-2562.99,0.00038356,30]
[402043658,1768492258802,-500.0,0.00038356,30]
[402043659,1768492258815,-1509.08,0.00038356,30]
[402043660,1768492258828,-864.79,0.00038356,30]
[402043661,1768492258841,-500.0,0.00038356,30]
[402043662,1768492258854,-500.0,0.00038356,30]
[402043663,1768492258867,-500.0,0.00038356,30]
[402043664,1768492258879,-500.0,0.00038356,30]
[402043665,1768492258892,-54.8984342,0.00038356,30]
[402043666,1768492258912,-445.1015658,0.00038356,30]
[402043667,1768492258924,-526.63409795,0.00038356,30]
[402043668,1768492258938,-701.21,0.00038356,30]
[402043669,1768492258950,-500.0,0.00038356,30]
[402043670,1768492258965,-500.0,0.00038356,30]
[402043671,1768492258977,-500.0,0.00038356,30]
[402043672,1768492258990,-135.85433618,0.00038356,30]
[402043673,1768492259004,-364.14566382,0.00038356,30]
[402043674,1768492259016,-500.0,0.00038356,30]
[402043675,1768492259028,-1408.97,0.00038356,30]
[402043676,1768492259040,-500.0,0.00038356,30]
[402043677,1768492259052,-500.0,0.00038356,30]
[402043678,1768492259064,-194.54672882,0.00038356,30]
[402043679,1768492259077,-861.74,0.00038356,30]
[402043680,1768492259088,-500.0,0.00038356,30]
[402043681,1768492259106,-994.64,0.00038356,30]
[402043682,1768492259120,-325.15410377,0.00038356,30]
[402043683,1768492259139,-174.84589623,0.00038356,30]
[402043684,1768492259154,-1564.44,0.00038356,30]
[402043685,1768492259170,-756.53,0.00038356,30]
[402043686,1768492259183,-500.0,0.00038356,30]
[402043687,1768492259195,-791.7,0.00038356,30]
[402043688,1768492259209,-804.24,0.00038356,30]
[402043689,1768492259225,-300.0,0.00038356,2]
[402043690,1768492259239,-380.11465046,0.00038356,30]
[402043691,1768492259252,-500.0,0.00038356,30]
[402043692,1768492259266,-500.0,0.00038356,5]
[402043693,1768492259280,-500.0,0.00038356,30]
[402043694,1768492259293,-1341.38,0.00038356,30]
[402043695,1768492259305,-960.03,0.00038356,30]
[402043696,1768492259318,-2430.97,0.000384,30]
[402043697,1768492259331,-1000.0,0.000384,7]
[402043698,1768492259343,-2833.52379571,0.0003853,2]
[402043699,1768492259356,-1014.31236684,0.00038533,2]
[402043700,1768492259369,-330.80563593,0.00038533,2]
[402043701,1768492259380,-300.0,0.00038533,2]
[402043702,1768492259392,-330.80563593,0.00038533,2]
[402043703,1768492259406,-300.0,0.00038533,2]
[402043704,1768492259418,-330.80563593,0.00038533,2]
[402043705,1768492259430,-161.12863381,0.00038533,2]
[402043706,1768492259446,-169.67700212,0.00038533,2]
[402043707,1768492259460,-300.0,0.00038533,2]
[402043708,1768492259475,-150.0,0.0003861,30]
[402043709,1768492259486,-263.12917229,0.0003862,2]
[402043710,1768492259499,-151.0,0.00038627,14]
[402043711,1768492259513,-63.19382559,0.00038629,14]
[402043712,1768492259529,-441.80617441,0.00038629,14]
[402043713,1768492259542,-1086.0844155,0.00038629,30]
[402043714,1768492259554,-500.0,0.00038629,30]
[402043715,1768492259566,-500.0,0.00038629,30]
[402043716,1768492259579,-423.08508423,0.00038629,30]
[402043717,1768492259591,-500.0,0.00038629,30]
[402043718,1768492259603,-500.0,0.00038629,30]
[402043719,1768492259616,-500.0,0.0003863,30]
[402043720,1768492259628,-500.0,0.0003863,30]
[402043721,1768492259640,-500.0,0.0003863,30]
[402043722,1768492259651,-327.73309556,0.0003863,30]
[402043723,1768492259664,-525.32226492,0.0003863,30]
[402043724,1768492259676,-500.0,0.0003863,30]
[402043725,1768492259687,-500.0,0.0003863,30]
[402043726,1768492259700,-500.0,0.0003863,30]
[402043727,1768492259714,-538.24,0.0003863,30]
[402043728,1768492259730,-500.0,0.0003863,30]
[402043729,1768492259742,-500.0,0.0003863,30]
[402043730,1768492259754,-1060.78,0.0003863,30]
[402043731,1768492259766,-500.0,0.0003863,30]
[402043732,1768492259779,-874.62,0.0003863,30]
[402043733,1768492259793,-544.53,0.0003863,30]
[402043734,1768492259805,-422.05198963,0.0003863,30]
[402043735,1768492259816,-500.0,0.0003863,30]
[402043736,1768492259827,-500.0,0.0003863,30]
[402043737,1768492259839,-500.0,0.0003863,30]
[402043738,1768492259851,-500.0,0.0003863,30]
[402043739,1768492259862,-572.45,0.0003863,30]
[402043740,1768492259875,-635.36,0.0003863,30]
[402043741,1768492259887,-583.22,0.0003863,30]
[402043742,1768492259899,-500.0,0.0003863,30]
[402043743,1768492259911,-428.47655242,0.0003863,30]
[402043744,1768492259922,-500.0,0.0003863,30]
[402043745,1768492259934,-500.0,0.0003863,30]
[402043746,1768492259947,-631.87,0.0003863,30]
[402043747,1768492259958,-500.0,0.0003863,30]
[402043748,1768492259971,-660.96,0.0003863,30]
[402043749,1768492259983,-500.0,0.0003863,30]
[402043750,1768492259994,-500.0,0.0003863,30]
[402043751,1768492260005,-500.0,0.0003863,30]
[402043752,1768492260017,-158.61669528,0.0003863,30]
[402043753,1768492260029,-500.0,0.0003863,30]
[402043754,1768492260040,-500.0,0.0003863,30]
[402043755,1768492260053,-1147.76,0.0003863,30]
[402043756,1768492260064,-500.0,0.0003863,30]
[402043757,1768492260077,-1023.54,0.0003863,30]
[402043758,1768492260088,-500.0,0.0003863,30]
[402043759,1768492260100,-650.78,0.0003863,30]
[402043760,1768492260112,-500.0,0.0003863,30]
[402043761,1768492260123,-1028.24,0.0003863,30]
[402043762,1768492260135,-500.0,0.0003863,30]
[402043763,1768492260146,-1157.53,0.0003863,30]
[402043764,1768492260158,-500.0,0.0003863,30]
[402043765,1768492260170,-500.0,0.0003863,30]
[402043766,1768492260181,-702.13,0.0003863,30]
[402043767,1768492260193,-500.0,0.0003863,30]
[402043768,1768492260206,-500.0,0.0003863,30]
[402043769,1768492260220,-500.0,0.0003863,30]
[402043770,1768492260233,-500.0,0.0003863,30]
[402043771,1768492260245,-500.0,0.0003863,30]
[402043772,1768492260255,-500.0,0.0003863,30]
[402043773,1768492260264,-654.87,0.0003863,30]
[402043774,1768492260274,-500.0,0.0003863,30]
[402043775,1768492260284,-500.0,0.0003863,30]
[402043776,1768492260294,-500.0,0.0003863,30]
[402043777,1768492260303,-767.68,0.0003863,30]
[402043778,1768492260313,-500.0,0.0003863,30]
[402043779,1768492260323,-500.0,0.0003863,30]
[402043780,1768492260333,-500.0,0.0003863,30]
[402043781,1768492260343,-500.0,0.0003863,30]
[402043782,1768492260353,-700.87,0.0003863,30]
[402043783,1768492260363,-567.29005882,0.0003863,30]
[402043784,1768492260372,-500.0,0.0003863,30]
[402043785,1768492260382,-500.0,0.0003863,30]
[402043786,1768492260392,-598.98,0.0003863,30]
[402043787,1768492260401,-500.0,0.0003863,30]
[402043788,1768492260412,-561.91,0.0003863,30]
[402043789,1768492260422,-500.0,0.0003863,30]
[402043790,1768492260432,-500.0,0.0003863,30]
[402043791,1768492260443,-736.68,0.0003863,30]
[402043792,1768492260454,-500.0,0.0003863,30]
[402043793,1768492260466,-500.0,0.0003863,30]
[402043794,1768492260476,-1052.23,0.0003863,30]
[402043795,1768492260972,-500.0,0.0003863,30]
[402043796,1768492260997,-500.0,0.0003863,30]
[402043797,1768492261028,-355.56436236,0.0003863,30]
[402043798,1768492261053,-1509.43,0.0003863,30]
[402043799,1768492261069,-636.05,0.0003863,30]
[402043800,1768492261079,-500.0,0.0003863,30]
[402043801,1768492261088,-500.0,0.0003863,30]
[402043802,1768492261097,-500.0,0.0003863,30]
[402043803,1768492261107,-500.0,0.0003863,30]
[402043804,1768492261116,-500.0,0.0003863,30]
[402043805,1768492261127,-507.47,0.0003863,30]
[402043806,1768492261136,-500.0,0.0003863,30]
[402043807,1768492261146,-500.0,0.0003863,30]
[402043808,1768492261157,-500.0,0.0003863,30]
[402043809,1768492261166,-500.0,0.0003863,30]
[402043810,1768492261175,-500.0,0.0003863,30]
[402043811,1768492261185,-500.0,0.0003863,30]
[402043812,1768492261194,-619.25,0.0003863,30]
[402043813,1768492261203,-500.0,0.0003863,30]
[402043814,1768492261216,-350.08701623,0.0003863,30]
[402043815,1768492261225,-151.0,0.0003863,120]
[402043816,1768492261235,-500.0,0.0003863,30]
[402043817,1768492261244,-500.0,0.0003863,30]
[402043818,1768492261254,-151.0,0.0003863,120]
[402043819,1768492261264,-500.0,0.0003863,30]
[402043820,1768492261273,-500.0,0.0003863,30]
[402043821,1768492261283,-500.0,0.0003863,30]
[402043822,1768492261292,-500.0,0.0003863,30]
[402043823,1768492261302,-596.98,0.0003863,30]
[402043824,1768492261311,-500.0,0.0003863,30]
[402043825,1768492261321,-151.0,0.0003863,120]
[402043826,1768492261331,-500.0,0.0003863,30]
[402043827,1768492261341,-500.0,0.0003863,30]
[402043828,1768492261350,-500.0,0.0003863,30]
[402043829,1768492261361,-500.0,0.0003863,30]
[402043830,1768492261370,-532.19,0.0003863,30]
[402043831,1768492261381,-500.0,0.0003863,30]
[402043832,1768492261390,-500.0,0.0003863,30]
[402043833,1768492261400,-500.0,0.0003863,30]
[402043834,1768492261409,-500.0,0.0003863,30]
[402043835,1768492261419,-500.0,0.0003863,30]
[402043836,1768492261428,-786.51,0.0003863,30]
[402043837,1768492261439,-500.0,0.0003863,30]
[402043838,1768492261449,-151.0,0.0003863,120]
[402043839,1768492261459,-151.0,0.0003863,120]
[402043840,1768492261471,-660.85,0.0003863,30]
[402043841,1768492261481,-500.0,0.0003863,30]
[402043842,1768492261491,-449.0865172,0.0003863,30]
[402043843,1768492261501,-500.0,0.0003863,30]
[402043844,1768492261510,-853.65,0.0003863,30]
[402043845,1768492261520,-500.0,0.0003863,30]
[402043846,1768492261530,-1614.43,0.0003863,30]
[402043847,1768492261540,-500.0,0.0003863,30]
[402043848,1768492261550,-733.3,0.0003863,30]
[402043849,1768492261561,-151.0,0.0003863,120]
[402043850,1768492261571,-500.0,0.0003863,30]
[402043851,1768492261581,-151.0,0.0003863,120]
[402043852,1768492261590,-934.43,0.0003863,30]
[402043853,1768492261600,-661.91,0.0003863,30]
[402043854,1768492261610,-500.0,0.0003863,30]
[402043855,1768492261620,-569.42,0.0003863,30]
[402043856,1768492261630,-180.831653,0.0003863,7]
[402043857,1768492261639,-500.0,0.0003863,30]
[402043858,1768492261649,-500.0,0.0003863,30]
[402043859,1768492261658,-500.0,0.0003863,30]
[402043860,1768492261668,-500.0,0.0003863,30]
[402043861,1768492261677,-606.29,0.0003863,30]
[402043862,1768492261687,-474.2240228,0.0003863,30]
[402043863,1768492261696,-151.0,0.0003863,120]
[402043864,1768492261706,-500.0,0.0003863,30]
[402043865,1768492261716,-500.0,0.0003863,30]
[402043866,1768492261729,-500.0,0.0003863,30]
[402043867,1768492261739,-152.312161,0.0003863,120]
[402043868,1768492261748,-1677.73,0.0003863,30]
[402043869,1768492261758,-151.0,0.0003863,120]
[402043870,1768492261769,-618.35907298,0.0003863,30]
[402043871,1768492261779,-1087.44,0.0003863,30]
[402043872,1768492261789,-151.0,0.0003863,120]
[402043873,1768492261801,-500.0,0.0003863,30]
[402043874,1768492261811,-151.0,0.0003863,120]
[402043875,1768492261820,-1330.05,0.0003863,30]
[402043876,1768492261829,-500.0,0.0003863,30]
[402043877,1768492261839,-151.0,0.0003863,120]